lending/lending_fUSD_20251111
["ID","MTS","AMOUNT","RATE_DAILY","PERIOD"]
[393667642,1762897841372,-500.0,0.0003733,30]
[393667643,1762897841381,-500.95275004,0.0003737,30]
[393667644,1762897841392,-477.64,0.00037397,2]
[393667645,1762897841402,-699.29,0.00037397,2]
[393667646,1762897841411,-477.64,0.00037397,2]
[393667647,1762897841420,-572.52,0.00037397,2]
[393667648,1762897841429,-477.64,0.00037397,2]
[393667649,1762897841439,-477.64,0.00037397,2]
[393667650,1762897841448,-477.64,0.00037397,2]
[393667651,1762897841458,-477.64,0.00037397,2]
[393667652,1762897841467,-477.64,0.00037397,2]
[393667653,1762897841477,-477.64,0.00037397,2]
[393667654,1762897841486,-477.64,0.00037397,2]
[393667655,1762897841495,-477.64,0.00037397,2]
[393667656,1762897841505,-477.64,0.00037397,2]
[393667657,1762897841514,-477.64,0.00037397,2]
[393667658,1762897841523,-477.64,0.00037397,2]
[393667659,1762897841533,-477.64,0.00037397,2]
[393667660,1762897841543,-477.64,0.00037397,2]
[393667661,1762897841552,-477.64,0.00037397,2]
[393667662,1762897841561,-477.64,0.00037397,2]
[393667663,1762897841571,-700.0,0.00037401,30]
[393667665,1762897841580,-165.228799,0.00037468,2]
[393667666,1762897841589,-500.0,0.00037521,5]
[393667667,1762897841600,-1000.0,0.00037528,5]
[393667668,1762897841610,-153794.9097835,0.00037535,2]
[393667669,1762897841619,-500.0,0.0003758,30]
[393667670,1762897841629,-700.0,0.00037655,30]
[393667671,1762897841640,-500.0,0.00037659,30]
[393667672,1762897841649,-500.0,0.0003776,30]
[393667673,1762897841659,-700.0,0.00037763,30]
[393667674,1762897841668,-500.0,0.00037801,30]
[393667675,1762897841678,-177.09,0.00037808,2]
[393667676,1762897841688,-169.21,0.00037808,2]
[393667677,1762897841697,-177.09,0.00037808,2]
[393667678,1762897841707,-150.0,0.00037808,2]
[393667679,1762897841716,-169.21,0.00037808,2]
[393667680,1762897841725,-177.09,0.00037808,2]
[393667682,1762897841734,-150.0,0.00037808,2]
[393667684,1762897841744,-169.21,0.00037808,2]
[393667686,1762897841754,-176.68,0.00037808,2]
[393667688,1762897841764,-169.21,0.00037808,2]
[393667689,1762897841776,-150.0,0.00037808,2]
[393667690,1762897841786,-169.21,0.00037808,2]
[393667692,1762897841796,-169.21,0.00037808,2]
[393667694,1762897841807,-150.0,0.00037808,2]
[393667696,1762897841818,-169.21,0.00037808,2]
[393667698,1762897841831,-169.21,0.00037808,2]
[393667700,1762897841840,-150.0,0.00037808,2]
[393667702,1762897841851,-169.21,0.00037808,2]
[393667704,1762897841860,-169.21,0.00037808,2]
[393667706,1762897841870,-150.0,0.00037808,2]
[393667708,1762897841880,-209.73,0.00037808,2]
[393667710,1762897841892,-150.0,0.00037808,2]
[393667712,1762897841902,-150.0,0.00037808,2]
[393667714,1762897841912,-150.0,0.00037808,2]
[393667716,1762897841922,-500.0,0.00037848,30]
[393667718,1762897841931,-797.13,0.00037851,2]
[393667720,1762897841940,-500.0,0.00037884,30]
[393667722,1762897841950,-500.0,0.00037898,30]
[393667723,1762897841960,-354.76,0.00037901,14]
[393667724,1762897841970,-700.0,0.00037973,30]
[393667725,1762897841980,-500.0,0.00037979,30]
[393667726,1762897841989,-161.0,0.00038,30]
[393667727,1762897841998,-1500.0,0.00038076,5]
[393667728,1762897842007,-500.0,0.00038109,30]
[393667729,1762897842017,-151.0,0.00038115,31]
[393667730,1762897842028,-151.0,0.00038115,30]
[393667731,1762897842037,-151.0,0.00038115,30]
[393667732,1762897842057,-151.0,0.00038115,30]
[393667733,1762897842067,-151.0,0.00038115,30]
[393667734,1762897842077,-3587.0,0.00038115,5]
[393667735,1762897842087,-1099.02114,0.00038122,2]
[393667736,1762897842096,-165.228799,0.00038173,2]
[393667737,1762897842106,-158.33834391,0.00038218,2]
[393667738,1762897842118,-500.0,0.00038264,30]
[393667739,1762897842129,-500.0,0.00038303,30]
[393667740,1762897842140,-700.0,0.00038326,30]
[393667741,1762897842149,-1806.91,0.00038335,20]
[393667742,1762897842159,-500.0,0.00038356,2]
[393667743,1762897842168,-502.39490539,0.00038356,2]
[393667744,1762897842178,-498.37297979,0.00038356,20]
[393667745,1762897842188,-485.92530177,0.00038356,20]
[393667746,1762897842197,-500.0,0.00038356,20]
[393667747,1762897842369,-500.0,0.00038356,20]
[393667748,1762897842380,-1000.0,0.00038356,120]
[393667749,1762897842391,-1000.0,0.00038356,120]
[393667750,1762897842400,-1000.0,0.00038356,120]
[393667751,1762897842411,-1000.0,0.00038356,120]
[393667752,1762897842420,-588.89694481,0.00038356,120]
[393667753,1762897842429,-498.6504868,0.00038356,20]
[393667754,1762897842439,-500.0,0.00038356,20]
[393667755,1762897842448,-500.0,0.00038356,20]
[393667756,1762897842458,-500.0,0.00038356,20]
[393667757,1762897842467,-500.0,0.00038356,20]
[393667758,1762897842477,-172.00641158,0.00038356,20]
[393667759,1762897842487,-500.0,0.00038356,2]
[393667760,1762897842496,-500.0,0.00038356,2]
[393667761,1762897842512,-500.0,0.00038356,2]
[393667762,1762897842525,-500.0,0.00038356,20]
[393667763,1762897842534,-500.0,0.00038356,20]
[393667764,1762897842544,-324.00076712,0.00038356,20]
[393667765,1762897842555,-500.0,0.00038356,20]
[393667766,1762897842564,-500.0,0.00038356,20]
[393667767,1762897842575,-500.0,0.00038356,20]
[393667768,1762897842585,-500.0,0.00038356,20]
[393667769,1762897842596,-500.0,0.00038356,20]
[393667770,1762897842606,-500.0,0.00038356,20]
[393667771,1762897842616,-500.0,0.00038356,2]
[393667772,1762897842626,-500.0,0.00038356,2]
[393667773,1762897842635,-500.0,0.00038356,20]
[393667774,1762897842645,-320.59,0.00038356,20]
[393667775,1762897842655,-300.0,0.00038356,2]
[393667776,1762897842665,-375.14,0.00038356,2]
[393667777,1762897842675,-500.0,0.00038356,20]
[393667778,1762897842684,-500.0,0.00038356,20]
[393667779,1762897842693,-500.0,0.00038356,20]
[393667780,1762897842702,-2370.37,0.00038356,20]
[393667781,1762897842711,-2370.37,0.00038356,20]
[393667782,1762897842721,-2370.37,0.00038356,20]
[393667783,1762897842730,-2370.37,0.00038356,20]
[393667784,1762897842739,-2370.37,0.00038356,20]
[393667785,1762897842748,-2370.37,0.00038356,20]
[393667786,1762897842758,-2370.37,0.00038356,20]
[393667787,1762897842769,-219.30309074,0.00038356,20]
[393667788,1762897842780,-606.86167195,0.00038356,20]
[393667789,1762897842789,-500.0,0.00038356,20]
[393667790,1762897842798,-500.0,0.00038356,20]
[393667791,1762897842807,-500.0,0.00038356,20]
[393667792,1762897842816,-380.0,0.00038356,20]
[393667793,1762897842826,-500.0,0.00038356,20]
[393667794,1762897842835,-500.0,0.00038356,20]
[393667795,1762897842846,-500.0,0.00038356,20]
[393667796,1762897842856,-500.0,0.00038356,2]
[393667797,1762897842866,-299.98409601,0.00038356,2]
[393667798,1762897842875,-500.0,0.00038356,20]
[393667799,1762897842885,-500.0,0.00038356,20]
[393667800,1762897842895,-500.0,0.00038356,20]
[393667801,1762897842904,-500.0,0.00038356,20]
[393667802,1762897842913,-500.0,0.00038356,2]
[393667804,1762897842922,-500.0,0.00038356,2]
[393667806,1762897842931,-500.0,0.00038356,2]
[393667807,1762897842940,-500.0,0.00038356,2]
[393667808,1762897842949,-500.0,0.00038356,2]
[393667809,1762897842958,-500.0,0.00038356,2]
[393667810,1762897842968,-500.0,0.00038356,2]
[393667811,1762897842977,-500.0,0.00038356,2]
[393667813,1762897842986,-216.34753877,0.00038356,2]
[393667815,1762897842996,-188.83,0.00038356,2]
[393667816,1762897843005,-150.0,0.00038373,5]
[393667818,1762897843014,-366.0,0.00038377,7]
[393667820,1762897843024,-166.66,0.00038389,2]
[393667821,1762897843034,-500.0,0.00038417,30]
[393667823,1762897843043,-150.0,0.00038456,2]
[393667825,1762897843052,-3426.0,0.0003856,2]
[393667827,1762897843062,-608.0,0.0003856,2]
[393667829,1762897843071,-574.0,0.0003856,2]
[393667831,1762897843080,-1317.0,0.0003856,2]
[393667833,1762897843089,-1597.0,0.0003856,2]
[393667834,1762897843098,-820.0,0.0003856,2]
[393667836,1762897843108,-1274.0,0.0003856,2]
[393667838,1762897843118,-813.0,0.0003856,2]
[393667840,1762897843127,-6664.0,0.0003856,2]
[393667842,1762897843137,-6481.0,0.0003856,2]
[393667844,1762897843146,-560.0,0.0003856,2]
[393667846,1762897843156,-2143.0,0.0003856,2]
[393667847,1762897843165,-4049.0,0.0003856,120]
[393667849,1762897843174,-500.0,0.0003861,30]
[393667852,1762897843184,-700.0,0.00038618,30]
[393667854,1762897843194,-2000.0,0.00038624,5]
[393667856,1762897843203,-264.45399243,0.00038629,2]
[393667858,1762897843212,-150.0,0.0003863,2]
[393667860,1762897843221,-150.0,0.0003863,2]
[393667862,1762897843231,-500.0,0.00038635,30]
[393667864,1762897843241,-500.0,0.00038653,30]
[393667867,1762897843250,-317.11,0.00038656,2]
[393667868,1762897843260,-500.0,0.00038684,30]
[393667871,1762897843271,-1275.51,0.000387,30]
[393667872,1762897843280,-398.31,0.000387,14]
[393667874,1762897843289,-159.35999485,0.00038707,15]
[393667876,1762897843299,-1000.0,0.00038727,2]
[393667878,1762897843308,-700.0,0.0003873,30]
[393667880,1762897843318,-700.0,0.00038783,30]
[393667882,1762897843327,-168.54112068,0.000388,120]
[393667884,1762897843336,-165.228799,0.00038879,2]
[393667886,1762897843345,-156.603683,0.00038879,2]
[393667888,1762897843354,-500.0,0.00038895,30]
[393667889,1762897843367,-11198.9020093,0.000389,60]
[393667891,1762897843376,-1261.42212681,0.000389,60]
[393667893,1762897843385,-364.09596743,0.000389,120]
[393667895,1762897843395,-152.0,0.0003891,3]
[393667897,1762897843404,-250.0,0.00038921,5]
[393667898,1762897843413,-700.0,0.00038932,30]
[393667900,1762897843423,-1000.0,0.00038973,5]
[393667901,1762897843432,-322.06,0.00038973,60]
[393667902,1762897843442,-500.0,0.00038977,30]
[393667903,1762897843451,-500.0,0.00038989,20]
[393667904,1762897843461,-150.15,0.0003899,2]
[393667905,1762897843470,-103899.97993112,0.00039,2]
[393667906,1762897843479,-172.58398853,0.00039,10]
[393667907,1762897843488,-6663.62456849,0.00039,4]
[393667908,1762897843497,-1570.09348638,0.00039,120]
[393667910,1762897843507,-1004.26378447,0.00039,7]
[393667912,1762897843517,-160.0,0.00039,120]
[393667914,1762897843527,-700.0,0.00039109,30]
[393667916,1762897843536,-217.58,0.00039117,2]
[393667918,1762897843545,-500.0,0.00039156,30]
[393667920,1762897843555,-797.13,0.00039172,2]
[393667922,1762897843564,-1806.91,0.00039179,20]
[393667924,1762897843574,-500.0,0.00039179,2]
[393667926,1762897843584,-2370.37,0.00039179,20]
[393667929,1762897843593,-32908.09452438,0.0003918,120]
[393667931,1762897843603,-500.0,0.00039188,30]
[393667933,1762897843613,-158.33834391,0.00039192,2]
[393667935,1762897843622,-500.0,0.00039314,20]
[393667937,1762897843631,-610.14834902,0.00039347,30]
[393667939,1762897843642,-700.0,0.00039377,30]
[393667941,1762897843651,-700.0,0.00039385,30]
[393667942,1762897843660,-624.0,0.00039446,2]
[393667943,1762897843670,-500.0,0.00039457,30]
[393667944,1762897843679,-364.0,0.00039467,2]
[393667945,1762897843688,-150.61887653,0.00039468,5]
[393667946,1762897843698,-893.78,0.0003947,30]
[393667947,1762897843707,-700.0,0.00039488,30]
[393667948,1762897843716,-153.0,0.00039507,120]
[393667949,1762897843725,-153.0,0.00039507,120]
[393667950,1762897843735,-166.66,0.00039509,2]
[393667951,1762897843745,-153.0,0.00039511,120]
[393667952,1762897843754,-153.0,0.00039511,120]
[393667953,1762897843766,-700.0,0.00039546,30]
[393667954,1762897843777,-700.0,0.00039557,30]
[393667955,1762897843787,-161.46532,0.00039584,2]
[393667956,1762897843797,-165.228799,0.00039584,2]
[393667957,1762897843807,-156.603683,0.00039584,2]
[393667958,1762897843817,-175.184744,0.00039584,2]
[393667959,1762897843827,-500.0,0.00039593,30]
[393667960,1762897843836,-500.0,0.00039599,20]
[393667961,1762897843846,-81930.80185806,0.000396,120]
[393667962,1762897843856,-151.0,0.000396,120]
[393667963,1762897843865,-151.0,0.000396,30]
[393667964,1762897843874,-151.0,0.000396,30]
[393667965,1762897843883,-151.0,0.000396,30]
[393667966,1762897843895,-225.236896,0.000396,30]
[393667967,1762897843904,-300.0,0.00039615,2]
[393667968,1762897843913,-330.99,0.00039654,2]
[393667969,1762897843923,-500.0,0.00039678,30]
[393667970,1762897843932,-500.0,0.00039681,30]
[393667971,1762897843942,-300.0,0.00039691,2]
[393667972,1762897843952,-2000.0,0.00039699,2]
[393667973,1762897843962,-1000.0,0.00039699,2]
[393667974,1762897843972,-623.0,0.00039713,2]
[393667975,1762897843981,-364.0,0.0003982,7]
[393667976,1762897843990,-364.0,0.00039833,120]
[393667977,1762897844000,-700.0,0.00039835,30]
[393667978,1762897844009,-500.0,0.0003986,30]
[393667979,1762897844018,-500.0,0.00039869,30]
[393667980,1762897844027,-624.0,0.00039891,2]
[393667981,1762897844036,-1708.0,0.000399,7]
[393667982,1762897844045,-300.0,0.00039916,2]
[393667983,1762897844054,-515.69447082,0.00039921,30]
[393667984,1762897844063,-200.0,0.00039942,20]
[393667985,1762897844071,-200.0,0.00039943,20]
[393667986,1762897844080,-500.0,0.00039946,30]
[393667987,1762897844089,-150.0,0.00039952,2]
[393667988,1762897844098,-150.0,0.00039952,2]
[393667989,1762897844107,-150.0,0.00039952,2]
[393667990,1762897844117,-150.0,0.00039952,2]
[393667991,1762897844126,-150.0,0.00039952,2]
[393667992,1762897844136,-150.0,0.00039952,2]
[393667993,1762897844145,-150.0,0.00039952,2]
[393667994,1762897844155,-150.0,0.00039952,2]
[393667995,1762897844164,-150.0,0.00039952,2]
[393667996,1762897844173,-150.0,0.00039952,2]
[393667997,1762897844182,-302.48,0.00039952,2]
[393667998,1762897844191,-165.228799,0.00039956,60]
[393667999,1762897844201,-2000.0,0.00039999,2]
[393668000,1762897844210,-1806.91,0.00039999,20]
[393668001,1762897844219,-500.0,0.00039999,2]
[393668002,1762897844228,-2370.37,0.00039999,20]
[393668003,1762897844241,-130615.40192372,0.0004,120]
[393668004,1762897844251,-2299.99998805,0.0004,2]
[393668005,1762897844260,-2000.0,0.0004,120]
[393668006,1762897844270,-1275.51,0.0004,30]
[393668007,1762897844279,-398.31,0.0004,14]
[393668008,1762897844288,-1000.0,0.0004,7]
[393668009,1762897844297,-300.0,0.00040001,2]
[393668010,1762897844307,-700.0,0.00040031,30]
[393668011,1762897844316,-300.0,0.00040041,2]
[393668012,1762897844325,-165.228799,0.00040042,60]
[393668013,1762897844335,-700.0,0.00040048,30]
[393668014,1762897844344,-504.91597169,0.00040054,30]
[393668015,1762897844353,-288.56,0.000401,60]
[393668016,1762897844363,-1241.0,0.000401,7]
[393668017,1762897844372,-300.0,0.00040104,2]
[393668018,1762897844381,-623.0,0.00040111,7]
[393668019,1762897844391,-322.06,0.00040113,60]
[393668020,1762897844400,-1099.02114,0.00040122,2]
[393668021,1762897844409,-165.228799,0.00040128,60]
[393668022,1762897844418,-156.603683,0.00040128,60]
[393668023,1762897844428,-500.0,0.0004016,30]
[393668024,1762897844437,-158.33834391,0.00040165,2]
[393668025,1762897844447,-159.35999485,0.00040166,15]
[393668026,1762897844456,-154.14367874,0.00040166,2]
[393668027,1762897844465,-500.0,0.00040169,30]
[393668028,1762897844474,-150.15,0.00040188,2]
[393668029,1762897844483,-500.0,0.00040197,20]
[393668030,1762897844493,-500.0,0.00040197,20]
[393668031,1762897844502,-500.0,0.00040197,20]
[393668032,1762897844512,-2742.614926,0.00040198,2]
[393668033,1762897844521,-500.0,0.00040202,30]
[393668034,1762897844530,-166.908883,0.00040214,60]
[393668035,1762897844539,-161.46532,0.00040214,60]
[393668036,1762897844549,-165.228799,0.00040214,60]
[393668037,1762897844558,-156.603683,0.00040214,60]
[393668038,1762897844567,-175.184744,0.00040214,60]
[393668039,1762897844576,-300.0,0.00040217,2]
[393668040,1762897844585,-150.61094306,0.00040227,2]
[393668041,1762897844594,-150.0,0.00040227,2]
[393668042,1762897844604,-150.0,0.00040227,2]
[393668043,1762897844613,-150.0,0.00040227,2]
[393668044,1762897844622,-150.0,0.00040227,2]
[393668045,1762897844631,-150.0,0.00040227,2]
[393668046,1762897844641,-150.0,0.00040227,2]
[393668047,1762897844650,-500.0,0.00040227,2]
[393668048,1762897844659,-150.0,0.00040227,2]
[393668049,1762897844668,-150.0,0.00040227,2]
[393668050,1762897844678,-500.0,0.00040227,2]
[393668051,1762897844687,-208.33894435,0.00040227,2]
[393668052,1762897844696,-500.0,0.00040227,2]
[393668053,1762897844705,-150.0,0.00040227,2]
[393668054,1762897844715,-162.66333759,0.00040227,2]
[393668055,1762897844724,-500.0,0.00040227,2]
[393668056,1762897844733,-500.0,0.00040227,2]
[393668057,1762897844742,-152.22350438,0.00040227,2]
[393668058,1762897844751,-150.0,0.00040227,2]
[393668059,1762897844761,-150.0,0.00040227,2]
[393668060,1762897844773,-500.0,0.00040227,2]
[393668061,1762897844783,-500.0,0.00040227,2]
[393668062,1762897844792,-500.0,0.00040227,2]
[393668063,1762897844802,-150.0,0.00040227,2]
[393668064,1762897844811,-500.0,0.00040227,2]
[393668065,1762897844820,-155.48275379,0.00040227,2]
[393668066,1762897844829,-500.0,0.00040227,2]
[393668067,1762897844839,-150.0,0.00040227,2]
[393668068,1762897844851,-500.0,0.00040227,2]
[393668069,1762897844861,-150.0,0.00040227,2]
[393668070,1762897844871,-500.0,0.00040227,2]
[393668071,1762897844891,-500.0,0.00040227,2]
[393668072,1762897844910,-150.82834383,0.00040227,2]
[393668073,1762897844919,-150.0,0.00040227,2]
[393668074,1762897844928,-150.0,0.00040227,2]
[393668075,1762897844938,-500.0,0.00040227,2]
[393668076,1762897844947,-150.0,0.00040227,2]
[393668077,1762897844956,-150.0,0.00040227,2]
[393668078,1762897844966,-212.23433046,0.00040227,2]
[393668079,1762897844975,-500.0,0.00040255,30]
[393668080,1762897844984,-500.0,0.00040258,20]
[393668081,1762897844993,-500.0,0.00040258,20]
[393668082,1762897845002,-1000.0,0.00040259,30]
[393668083,1762897845012,-1000.0,0.00040259,30]
[393668084,1762897845021,-1000.0,0.00040259,30]
[393668085,1762897845030,-1000.0,0.00040259,30]
[393668086,1762897845039,-3149.45206845,0.00040264,120]
[393668087,1762897845048,-500.0,0.00040264,2]
[393668088,1762897845058,-500.0,0.00040265,15]
[393668089,1762897845067,-500.0,0.00040265,15]
[393668090,1762897845076,-500.0,0.00040265,15]
[393668091,1762897845085,-318.18658635,0.00040265,15]
[393668092,1762897845095,-500.0,0.00040265,15]
[393668093,1762897845104,-500.0,0.00040265,15]
[393668094,1762897845113,-500.0,0.00040265,15]
[393668095,1762897845122,-500.0,0.00040265,15]
[393668096,1762897845131,-500.0,0.00040265,15]
[393668097,1762897845142,-500.0,0.00040265,15]
[393668098,1762897845151,-500.0,0.00040265,15]
[393668099,1762897845160,-500.0,0.00040265,15]
[393668100,1762897845170,-158.75540727,0.00040265,30]
[393668101,1762897845180,-150.0,0.00040265,30]
[393668102,1762897845190,-150.0,0.00040265,30]
[393668103,1762897845200,-500.0,0.00040265,2]
[393668105,1762897845209,-500.0,0.00040265,2]
[393668107,1762897845219,-500.0,0.00040265,2]
[393668109,1762897845228,-500.0,0.00040265,2]
[393668111,1762897845238,-500.0,0.00040265,2]
[393668113,1762897845247,-500.0,0.00040265,2]
[393668115,1762897845256,-500.0,0.00040265,2]
[393668117,1762897845266,-207.54835019,0.00040265,2]
[393668119,1762897845275,-150.0,0.00040265,2]
[393668121,1762897845284,-3106.93072591,0.00040265,2]
[393668123,1762897845294,-500.0,0.00040265,20]
[393668125,1762897845303,-500.0,0.00040265,20]
[393668126,1762897845407,-500.0,0.00040265,20]
[393668127,1762897845429,-500.0,0.00040265,20]
[393668128,1762897845438,-1806.91,0.00040265,20]
[393668129,1762897845449,-1806.91,0.00040265,20]
[393668130,1762897845459,-1806.91,0.00040265,20]
[393668131,1762897845468,-1806.91,0.00040265,20]
[393668132,1762897845478,-1806.91,0.00040265,20]
[393668133,1762897845487,-1806.91,0.00040265,20]
[393668134,1762897845496,-1806.91,0.00040265,20]
[393668135,1762897845505,-1806.91,0.00040265,20]
[393668136,1762897845514,-1806.91,0.00040265,20]
[393668137,1762897845523,-1806.91,0.00040265,20]
[393668138,1762897845532,-1806.91,0.00040265,20]
[393668139,1762897845541,-1806.91,0.00040265,20]
[393668140,1762897845550,-1806.91,0.00040265,20]
[393668141,1762897845559,-1806.91,0.00040265,20]
[393668142,1762897845569,-1807.12,0.00040265,20]
[393668143,1762897845578,-500.0,0.00040265,2]
[393668144,1762897845587,-500.0,0.00040265,2]
[393668145,1762897845596,-500.0,0.00040265,2]
[393668146,1762897845605,-500.0,0.00040265,2]
[393668147,1762897845614,-500.0,0.00040265,2]
[393668148,1762897845623,-512.5,0.00040265,2]
[393668149,1762897845633,-2370.37,0.00040265,20]
[393668150,1762897845643,-2370.37,0.00040265,20]
[393668151,1762897845652,-2370.37,0.00040265,20]
[393668152,1762897845661,-2370.37,0.00040265,20]
[393668153,1762897845670,-2370.37,0.00040265,20]
[393668154,1762897845679,-2370.37,0.00040265,20]
[393668155,1762897845688,-2370.37,0.00040265,20]
[393668156,1762897845697,-2370.37,0.00040265,20]
[393668157,1762897845706,-2370.37,0.00040265,20]
[393668158,1762897845715,-2370.37,0.00040265,20]
[393668159,1762897845724,-2370.37,0.00040265,20]
[393668160,1762897845733,-2370.37,0.00040265,20]
[393668161,1762897845742,-2370.37,0.00040265,20]
[393668162,1762897845752,-2370.37,0.00040265,20]
[393668163,1762897845762,-2370.5331856,0.00040265,20]
[393668164,1762897845775,-192.092718,0.00040265,120]
[393668165,1762897845784,-151.0,0.00040265,30]
[393668166,1762897845793,-151.0,0.00040265,30]
[393668167,1762897845803,-151.0,0.00040265,30]
[393668168,1762897845813,-151.0,0.00040265,30]
[393668169,1762897845823,-151.0,0.00040265,30]
[393668170,1762897845833,-151.0,0.00040265,30]
[393668171,1762897845844,-411.22668614,0.00040265,30]
[393668172,1762897845854,-411.22668614,0.00040265,30]
[393668173,1762897845864,-113860.31249704,0.00040265,30]
[393668174,1762897845873,-113860.31249704,0.00040265,30]
[393668175,1762897845882,-113860.31249704,0.00040265,30]
[393668176,1762897845892,-113860.31249704,0.00040265,30]
[393668177,1762897845902,-185.8,0.00040266,2]
[393668178,1762897845912,-2516.96869695,0.00040266,30]
[393668179,1762897845921,-2516.96869695,0.00040266,30]
[393668180,1762897845930,-15101388.57718377,0.00040266,7]
[393668181,1762897845947,-494.42901379,0.00040266,7]
[393668182,1762897845959,-327.36299999,0.00040266,7]
[393668184,1762897846007,-12742.13528344,0.00040266,7]
[393668185,1762897846018,-1730.84596,0.00040266,7]
[393668186,1762897846029,-4644.64,0.00040266,7]
[393668187,1762897846120,-1161.0,0.00040266,7]
[393668189,1762897846529,-344849.15126229,0.00040266,7]
[393668190,1762897846540,-4813.15858826,0.00040266,7]
[393668191,1762897846639,-477.64,0.00037397,2]
[393668192,1762897846649,-150.0,0.0003856,2]
[393668193,1762897846658,-5151.86,0.00040266,7]
[393668194,1762897846669,-616.61600268,0.00040266,7]
[393668195,1762897846680,-1285.84197456,0.00040266,7]
[393668196,1762897846692,-575.63033986,0.00040266,7]
[393668197,1762897846756,-332180.89878933,0.00040266,7]
[393668198,1762897846770,-6802.03608312,0.00040266,7]
[393668199,1762897846782,-52529.1507213,0.00040266,7]
[393668200,1762897846875,-1033.14441853,0.00040266,7]
[393668252,1762899032303,-1010.96,0.00025,2]
[393668253,1762899032312,-1010.96,0.000255,2]
[393668254,1762899032322,-1010.96,0.00026,30]
[393668255,1762899032332,-500.0,0.000269,2]
[393668256,1762899032341,-267.25465722,0.00028835,2]
[393668257,1762899032351,-400.0,0.0003058,2]
[393668258,1762899032360,-1600.0,0.0003058,2]
[393668259,1762899032370,-400.0,0.00030581,2]
[393668260,1762899032379,-184.1,0.00030582,2]
[393668261,1762899032388,-1557.4,0.00030582,2]
[393668262,1762899032397,-166.66,0.00031569,30]
[393668263,1762899032407,-242.16604756,0.00032,120]
[393668264,1762899032416,-198.35557658,0.00032,120]
[393668265,1762899032425,-210.10661975,0.00032,120]
[393668266,1762899032435,-166.66,0.00032233,30]
[393668267,1762899032444,-245.36508658,0.00032575,30]
[393668268,1762899032454,-166.66,0.00032898,30]
[393668269,1762899032463,-717.39679626,0.000329,5]
[393668270,1762899032473,-560.0,0.00032939,3]
[393668271,1762899032482,-1097.0,0.00032999,2]
[393668272,1762899032491,-242.16604756,0.00033,120]
[393668273,1762899032500,-2686.38,0.00033,2]
[393668274,1762899032509,-3577.32,0.00033,2]
[393668275,1762899032519,-999.99,0.00033,2]
[393668276,1762899032528,-10929.47,0.00033,2]
[393668277,1762899032537,-2240.0,0.00033077,3]
[393668278,1762899032547,-174.06,0.0003323,2]
[393668279,1762899032556,-191.33,0.0003323,120]
[393668280,1762899032565,-55.79124598,0.0003323,2]
[393668281,1762899032672,-4944.20875402,0.0003323,2]
[393668282,1762899032682,-559.43,0.0003323,2]
[393668283,1762899032692,-150.0,0.0003323,2]
[393668284,1762899032701,-200.0,0.0003323,2]
[393668285,1762899032710,-999.0,0.0003323,3]
[393668286,1762899032720,-166.66,0.00033563,30]
[393668287,1762899032729,-151.90588802,0.00033575,30]